[Event "Int SVK-ch Open 2020"]
[Site "Drienica"]
[Date "2020.08.15"]
[Round "9.10"]
[White "Walterova, Ema"]
[Black "Lehocz, Jozsef Jr."]
[Result "1/2-1/2"]
[ECO "B22"]
[WhiteElo "1790"]
[BlackElo "1534"]
[Annotator "NA"]
[PlyCount "54"]
[EventDate "2020.08.07"]
[EventType "swiss"]
[EventCountry "SVK"]
[SourceTitle "playchess.com"]
[Source "ChessBase"]
[SourceQuality "1"]
[TimeControl "40/5400+30:1800+30"]

1. e4 {[%emt 0:00:00]} c5 {[%emt 0:00:00]} 2. c3 {[%emt 0:00:00]} Nf6 {[%emt 0:00:16]} 3. e5 {[%emt 0:00:00]} Nd5 {[%emt 0:00:04]} 4. d4 {[%emt 0:00:12]} cxd4 {[%emt 0:00:03]} 5. Nf3 {[%emt 0:00:23]} Nc6 {[%emt 0:01:01]} 6. cxd4 {[%emt 0:00:22]} d6 {[%emt 0:00:18]} 7. exd6 {[%emt 0:01:54]} e6 {[%emt 0:00:31]} 8. Nc3 {[%emt 0:01:19]} Nxc3 {[%emt 0:14:41]} 9. bxc3 {[%emt 0:00:07]} Bxd6 {[%emt 0:00:25]} 10. Bd3 {[%emt 0:02:10]} h6 {[%emt 0:12:40]} 11. O-O {[%emt 0:04:16]} O-O {[%emt 0:00:54]} 12. Qe2 {[%emt 0:10:48]} Qc7 {[%emt 0:15:12]} 13. Bd2 {[%emt 0:13:26]} e5 {[%emt 0:02:25]} 14. h3 {[%emt 0:19:24]} f5 {[%emt 0:02:05]} 15. dxe5 {[%emt 0:04:28]} Nxe5 {[%emt 0:00:01]} 16. Nxe5 {[%emt 0:05:55]} Bxe5 {[%emt 0:02:28]} 17. Rfe1 {[%emt 0:06:07]} Bf4 18. Bc4+ Kh8 {[%emt 0:01:58]} 19. Bxf4 {[%emt 0:01:50]} Qxf4 {[%emt 0:00:05]} 20. Qe7 {[%emt 0:00:10]} Bd7 {[%emt 0:01:44]} 21. Bd5 {[%emt 0:06:12]} Bc6 {[%emt 0:00:24]} 22. Bxc6 {[%emt 0:01:28]} bxc6 {[%emt 0:00:01]} 23. Re6 {[%emt 0:00:16]} Qc4 {[%emt 0:07:22]} 24. Rd1 {[%emt 0:07:01]} Qxc3 {[%emt 0:04:56]} 25. Rxh6+ {[%emt 0:04:12]} gxh6 {[%emt 0:02:06]} 26. Rd7 {[%emt 0:00:07]} Qc1+ {[%emt 0:00:06]} 27. Kh2 {[%emt 0:01:17]} Qf4+ {[%emt 0:00:09]} 1/2-1/2

[Event "Int SVK-ch Open 2020"]
[Site "Drienica"]
[Date "2020.08.15"]
[Round "9.11"]
[White "Bochnickova, Simona"]
[Black "Strapec, Lukas"]
[Result "0-1"]
[ECO "B31"]
[WhiteElo "1797"]
[BlackElo "1525"]
[Annotator "NA"]
[PlyCount "94"]
[EventDate "2020.08.07"]
[EventType "swiss"]
[EventCountry "SVK"]
[SourceTitle "playchess.com"]
[Source "ChessBase"]
[SourceQuality "1"]
[TimeControl "40/5400+30:1800+30"]

1. e4 c5 {[%emt 0:00:09]} 2. Nf3 {[%emt 0:00:00]} Nc6 {[%emt 0:02:31]} 3. Bb5 {[%emt 0:01:37]} g6 {[%emt 0:07:01]} 4. O-O {[%emt 0:01:21]} Bg7 {[%emt 0:01:26]} 5. Nc3 {[%emt 0:00:33]} a6 {[%emt 0:06:17]} 6. Bxc6 {[%emt 0:01:23]} bxc6 {[%emt 0:02:20]} 7. d3 {[%emt 0:04:43]} d5 {[%emt 0:06:05]} 8. Re1 Bg4 {[%emt 0:07:48]} 9. h3 {[%emt 0:01:25]} Bxf3 {[%emt 0:00:55]} 10. Qxf3 {[%emt 0:00:09]} Nf6 {[%emt 0:10:53]} 11. e5 {[%emt 0:00:28]} Nd7 {[%emt 0:09:49]} 12. e6 {[%emt 0:00:18]} Nf6 {[%emt 0:04:18]} 13. exf7+ {[%emt 0:01:09]} Kxf7 {[%emt 0:03:13]} 14. Bf4 {[%emt 0:02:25]} e6 {[%emt 0:06:48]} 15. g4 {[%emt 0:12:18]} Ke7 {[%emt 0:16:04]} 16. Qe3 {[%emt 0:01:15]} Qd7 {[%emt 0:02:00]} 17. Qxc5+ {[%emt 0:00:24]} Kf7 {[%emt 0:00:41]} 18. Re2 {[%emt 0:01:19]} Rhe8 {[%emt 0:02:10]} 19. Rae1 {[%emt 0:00:42]} d4 {[%emt 0:04:09]} 20. Ne4 {[%emt 0:01:11]} Nxe4 {[%emt 0:00:34]} 21. Rxe4 {[%emt 0:00:14]} Qd5 {[%emt 0:01:47]} 22. Qb6 {[%emt 0:04:17]} Qb5 {[%emt 0:03:08]} 23. Qc7+ {[%emt 0:05:06]} Re7 {[%emt 0:00:25]} 24. Qd6 {[%emt 0:00:09]} Qd5 {[%emt 0:00:31]} 25. Qb4 {[%emt 0:00:12]} Qb5 {[%emt 0:00:42]} 26. Qd2 {[%emt 0:00:23]} Qxb2 {[%emt 0:00:40]} 27. Bd6 {[%emt 0:00:38]} Ree8 {[%emt 0:00:29]} 28. Qf4+ {[%emt 0:00:12]} Kg8 {[%emt 0:00:22]} 29. Rxe6 {[%emt 0:00:25]} Rxe6 {[%emt 0:00:26]} 30. Rxe6 {[%emt 0:00:02]} Qxa2 {[%emt 0:00:40]} 31. Qe4 {[%emt 0:00:35]} Bf8 {[%emt 0:00:33]} 32. Re8 {[%emt 0:02:05]} Rxe8 {[%emt 0:00:29]} 33. Qxe8 {[%emt 0:00:01]} Qf7 {[%emt 0:00:25]} 34. Qxc6 {[%emt 0:00:39]} Qe6 {[%emt 0:00:21]} 35. Qxa6 {[%emt 0:00:33]} Qxd6 {[%emt 0:00:07]} 36. Qc4+ {[%emt 0:00:08]} Kg7 {[%emt 0:00:11]} 37. c3 {[%emt 0:00:42]} dxc3 {[%emt 0:01:15]} 38. Qxc3+ {[%emt 0:00:04]} Qf6 {[%emt 0:00:13]} 39. Qc7+ {[%emt 0:00:19]} Be7 {[%emt 0:00:23]} 40. d4 {[%emt 0:00:18]} Qd6 {[%emt 0:00:21]} 41. Qc4 {[%emt 0:31:21]} Qf4 {[%emt 0:07:28]} 42. Qe2 {[%emt 0:00:00]} Bd6 {[%emt 0:00:51]} 43. Qd3 {[%emt 0:00:00]} Be7 {[%emt 0:04:35]} 44. Qe2 {[%emt 0:00:00]} Bf6 {[%emt 0:02:47]} 45. d5 {[%emt 0:00:00]} Be5 {[%emt 0:00:32]} 46. Qd3 {[%emt 0:00:00]} Bd4 {[%emt 0:01:07]} 47. Qc2 {[%emt 0:00:00]} Qg3+ {[%emt 0:00:32]} 0-1

[Event "Int SVK-ch Open 2020"]
[Site "Drienica"]
[Date "2020.08.15"]
[Round "9.12"]
[White "Varga, Lukas"]
[Black "Ihnat, Marek"]
[Result "1-0"]
[ECO "B23"]
[WhiteElo "2040"]
[BlackElo "2065"]
[Annotator "ChessBase"]
[PlyCount "107"]
[EventDate "2020.08.07"]
[EventType "swiss"]
[EventCountry "SVK"]
[SourceTitle "playchess.com"]
[Source "ChessBase"]
[SourceQuality "1"]
[TimeControl "40/5400+30:1800+30"]

1. e4 {[%emt 0:00:13]} c5 {[%emt 0:00:00]} 2. Nc3 {[%emt 0:00:42]} Nc6 {[%emt 0:00:00]} 3. Bb5 {[%emt 0:00:06]} Nd4 {[%emt 0:00:00]} 4. Nf3 {[%emt 0:00:07]} Nxb5 {[%emt 0:01:24]} 5. Nxb5 {[%emt 0:00:05]} d6 {[%emt 0:01:47]} 6. d4 {[%emt 0:02:15]} a6 {[%emt 0:08:05]} 7. Nc3 {[%emt 0:00:07]} cxd4 {[%emt 0:00:30]} 8. Qxd4 {[%emt 0:00:08]} e5 {[%emt 0:03:16]} 9. Qd3 {[%emt 0:00:40]} Be7 {[%emt 0:02:28]} 10. O-O {[%emt 0:01:12]} Nf6 {[%emt 0:01:18]} 11. a4 {[%emt 0:06:18]} O-O {[%emt 0:03:53]} 12. Rd1 {[%emt 0:03:51]} h6 {[%emt 0:05:11]} 13. Nd2 {[%emt 0:03:42]} Bg4 {[%emt 0:03:31]} 14. f3 {[%emt 0:00:49]} Be6 {[%emt 0:00:07]} 15. Nc4 {[%emt 0:01:58]} Qc7 {[%emt 0:02:04]} 16. Ne3 {[%emt 0:04:23]} Rac8 {[%emt 0:01:23]} 17. Bd2 {[%emt 0:03:39]} Qb6 {[%emt 0:07:47]} 18. a5 {[%emt 0:03:58]} Qc7 {[%emt 0:02:24]} 19. Na4 {[%emt 0:01:48]} Bc4 {[%emt 0:06:56]} 20. Nxc4 {[%emt 0:02:10]} Qxc4 {[%emt 0:00:38]} 21. Qxc4 {[%emt 0:00:01]} Rxc4 {[%emt 0:00:13]} 22. c3 {[%emt 0:02:30]} Nd7 {[%emt 0:01:38]} 23. Be3 {[%emt 0:01:09]} Kh7 {[%emt 0:04:39]} 24. b3 {[%emt 0:02:08]} Rc6 {[%emt 0:00:54]} 25. c4 {[%emt 0:00:09]} Rfc8 {[%emt 0:03:02]} 26. Rd3 {[%emt 0:01:33]} g6 {[%emt 0:01:36]} 27. Bd2 {[%emt 0:02:11]} Nc5 {[%emt 0:01:34]} 28. Nxc5 {[%emt 0:00:24]} dxc5 {[%emt 0:00:45]} 29. Bc3 {[%emt 0:00:44]} f6 {[%emt 0:01:18]} 30. Rd7 {[%emt 0:01:12]} R8c7 {[%emt 0:00:59]} 31. Rad1 {[%emt 0:00:06]} Kg8 {[%emt 0:03:11]} 32. g3 {[%emt 0:01:18]} Kf7 {[%emt 0:03:07]} 33. Kf2 {[%emt 0:03:56]} Ke6 {[%emt 0:01:16]} 34. R7d5 {[%emt 0:00:05]} Rd6 {[%emt 0:02:38]} 35. f4 {[%emt 0:00:46]} exf4 {[%emt 0:03:56]} 36. gxf4 {[%emt 0:00:42]} Rcd7 {[%emt 0:02:41]} 37. Kf3 {[%emt 0:02:57]} Rxd5 {[%emt 0:00:45]} 38. cxd5+ {[%emt 0:00:07]} Kf7 {[%emt 0:00:28]} 39. e5 {[%emt 0:00:44]} Rd8 {[%emt 0:07:42]} 40. d6 {[%emt 0:02:40]} Bf8 {[%emt 0:03:49]} 41. Ke4 {[%emt 0:31:05]} Ke6 {[%emt 0:32:36]} 42. Rg1 {[%emt 0:00:52]} f5+ {[%emt 0:07:21]} 43. Kd3 {[%emt 0:02:33]} g5 {[%emt 0:00:00]} 44. fxg5 {[%emt 0:00:00]} Bg7 {[%emt 0:00:00]} 45. gxh6 {[%emt 0:00:00]} Bxe5 {[%emt 0:00:00]} 46. Re1 {[%emt 0:00:00]} Rxd6+ {[%emt 0:00:00]} 47. Kc4 {[%emt 0:00:00]} Kd7 {[%emt 0:00:00]} 48. Bxe5 {[%emt 0:00:00]} Rxh6 {[%emt 0:00:00]} 49. Kxc5 {[%emt 0:00:00]} b6+ {[%emt 0:00:00]} 50. Kb4 {[%emt 0:00:00]} Rh4+ {[%emt 0:00:00]} 51. Ka3 {[%emt 0:00:00]} bxa5 {[%emt 0:00:00]} 52. Rd1+ {[%emt 0:00:00]} Ke6 {[%emt 0:00:00]} 53. Bg3 {[%emt 0:00:00]} Re4 {[%emt 0:00:00]} 54. Re1 {[%emt 0:00:00]} 1-0

[Event "Int SVK-ch Open 2020"]
[Site "Drienica"]
[Date "2020.08.15"]
[Round "9.12"]
[White "Stanko, Ivan"]
[Black "Budjac, Martin"]
[Result "1/2-1/2"]
[ECO "C44"]
[WhiteElo "1848"]
[BlackElo "1511"]
[Annotator "NA"]
[PlyCount "53"]
[EventDate "2020.08.07"]
[EventType "swiss"]
[EventCountry "SVK"]
[SourceTitle "playchess.com"]
[Source "ChessBase"]
[SourceQuality "1"]
[TimeControl "40/5400+30:1800+30"]

{[%evp 8,44,26,21,27,32767,32767,32767,32767,190,32767,184,190,175,206,127,160,155,224,32767,185,156,153,153,134,32767,111,119,120,102,32767,32767,134,32767,124,131,117,0,25]} 1. e4 {[%emt 0:00:00]} e5 {[%emt 0:00:00]} 2. Nf3 {[%emt 0:00:00]} Nc6 {[%emt 0:00:00]} 3. d4 {[%emt 0:00:20]} exd4 {[%emt 0:00:00]} 4. Nxd4 {[%emt 0:00:10]} Bb4+ {[%emt 0:00:10]} 5. c3 {[%emt 0:00:23]} Bc5 {[%emt 0:00:15]} 6. Bc4 {[%emt 0:02:11] C45: Scotch Game.} Qh4 {[%emt 0:05:57]} 7. O-O {[%emt 0:02:29] [#]} Nf6 $146 {[%emt 0:03:24]} ({Predecessor:} 7... Nge7 8. Nb5 Bb6 9. Be3 a6 10. Nd6+ cxd6 11. Bxb6 Qxe4 12. Bb3 d5 13. Re1 Qf4 14. Bxd5 O-O 15. Bc5 Qg5 16. c4 d6 17. Bxd6 Rd8 18. Bxe7 Nxe7 19. Bxf7+ {1-0 (19) Suarez Real,A (2397)-Wall,G (2331) England 2014}) 8. Nf5 $1 {[%emt 0:02:28] Double Attack} Qg4 {[%emt 0:03:01]} 9. Qxg4 {[%emt 0:01:11]} Nxg4 {[%emt 0:00:07]} 10. Nxg7+ {[%emt 0:00:23]} Kf8 {[%emt 0:00:09]} 11. Nf5 {[%emt 0:00:55]} (11. Nh5 $18) 11... Nce5 {[%emt 0:03:38]} 12. Be2 {[%emt 0:00:35]} d5 {[%emt 0:02:11]} (12... h5 $16 13. Bg5 Rg8) 13. h3 {[%emt 0:01:04]} Nf6 {[%emt 0:01:59]} 14. Bh6+ {[%emt 0:01:00]} Kg8 {[%emt 0:03:01]} 15. Bg7 {[%emt 0:01:54]} Nxe4 16. Bxh8 Kxh8 {[%emt 0:01:16] [#]} 17. Nd4 $1 {[%emt 0:00:46]} Bd7 {[%emt 0:02:55]} 18. Rd1 {[%emt 0:05:42]} Rg8 {[%emt 0:02:33]} 19. Kf1 {[%emt 0:04:18]} Ng6 {[%emt 0:11:40]} 20. Nd2 {[%emt 0:02:10]} Nf4 {[%emt 0:05:21]} 21. Nxe4 {[%emt 0:01:23]} dxe4 {[%emt 0:01:26]} 22. Nb3 {[%emt 0:02:54]} (22. Bg4 $16 Bxg4 23. hxg4) 22... Bd6 $11 {[%emt 0:07:43]} 23. g3 {[%emt 0:21:12]} Bxh3+ {[%emt 0:00:57]} 24. Ke1 {[%emt 0:00:05]} Nxe2 {[%emt 0:00:33]} 25. Kxe2 {[%emt 0:00:04]} Bg4+ {[%emt 0:00:08]} 26. Ke3 {[%emt 0:00:28]} Bxd1 {[%emt 0:00:12]} 27. Rxd1 {[%emt 0:00:06]} 1/2-1/2

[Event "Int SVK-ch Open 2020"]
[Site "Drienica"]
[Date "2020.08.15"]
[Round "9.13"]
[White "Furman, Maximilian Jan"]
[Black "Tomanek, Rafael"]
[Result "1-0"]
[ECO "B10"]
[WhiteElo "1598"]
[BlackElo "1835"]
[Annotator "NA"]
[PlyCount "83"]
[EventDate "2020.08.07"]
[EventType "swiss"]
[EventCountry "SVK"]
[SourceTitle "playchess.com"]
[Source "ChessBase"]
[SourceQuality "1"]
[TimeControl "40/5400+30:1800+30"]

{[%evp 13,83,16,32767,32767,48,59,54,49,45,31,32767,50,32767,32,46,46,81,75,79,16,32767,6,17,1,32767,5,8,11,21,0,24,8,4,0,0,0,0,-112,0,0,0,-19,32767,32767,32767,32767,32767,144,32767,32767,1404,32767,32767,32767,32767,32767,32767,32767,32767,32767,32767,32767,32767,32767,32767,32767,32767,32767,1502,6379,6087,29975]} 1. e4 {[%emt 0:00:00]} c6 {[%emt 0:00:00]} 2. Nc3 {[%emt 0:00:00]} d5 {[%emt 0:00:00]} 3. Nf3 {[%emt 0:00:00]} dxe4 {[%emt 0:01:30]} 4. Nxe4 {[%emt 0:00:01]} Nd7 {[%emt 0:00:22]} 5. Bc4 {[%emt 0:01:16]} Ngf6 {[%emt 0:06:08]} 6. Qe2 {[%emt 0:06:27]} Nxe4 {[%emt 0:04:45]} 7. Qxe4 {[%emt 0:00:44]} Nf6 {[%emt 0:00:14]} 8. Qe2 {[%emt 0:02:57]} e6 {[%emt 0:04:03]} 9. d4 {[%emt 0:04:22]} Be7 {[%emt 0:02:15]} 10. O-O {[%emt 0:04:58]} O-O {[%emt 0:01:07]} 11. Bf4 {[%emt 0:03:08]} Nd5 {[%emt 0:05:44] B17: Caro-Kann: Modern Line (4...Nd7).} 12. Bg3 {[%emt 0:01:03]} b6 {[%emt 0:08:11]} 13. Rad1 {[%emt 0:02:14]} Bb7 {[%emt 0:03:40]} 14. c3 {[%emt 0:01:48]} Bf6 {[%emt 0:08:52]} 15. Ne5 {[%emt 0:11:07] [#]} Qe7 $146 {[%emt 0:07:02]} ({Predecessor:} 15... g6 16. Bb3 a5 17. c4 Ne7 18. Ng4 Bg7 19. Bh4 Qc7 20. Nf6+ Kh8 21. Bg3 Qd8 22. Ng4 Nf5 {½-½ (44) Teixeira,R (2325)-Miranda,M (2305) Rio de Janeiro 1997}) 16. Ba6 {[%emt 0:03:01]} Bxa6 {[%emt 0:02:12]} 17. Qxa6 {[%emt 0:00:16]} Bxe5 {[%emt 0:06:01]} 18. Bxe5 {[%emt 0:01:01]} Rac8 {[%emt 0:06:16]} 19. Qd3 {[%emt 0:03:38]} Rfd8 {[%emt 0:10:50]} 20. Rfe1 {[%emt 0:05:04]} Rd7 {[%emt 0:06:24]} 21. Qf3 {[%emt 0:06:03]} Nf6 {[%emt 0:02:13]} 22. Qg3 {[%emt 0:03:15]} Rcd8 {[%emt 0:02:44]} 23. Rd3 {[%emt 0:01:08]} c5 {[%emt 0:01:49]} 24. Rf3 {[%emt 0:02:41]} Ne8 {[%emt 0:00:19]} 25. h3 {[%emt 0:00:49]} (25. Rfe3 $11) 25... cxd4 {[%emt 0:01:02]} (25... f6 $17 26. Bf4 cxd4 27. cxd4 Rxd4) 26. Bxd4 {[%emt 0:00:15]} Rd5 {[%emt 0:00:32]} 27. h4 {[%emt 0:06:40]} f6 {[%emt 0:03:01]} 28. Rfe3 {[%emt 0:03:50]} Nc7 {[%emt 0:02:24]} 29. Bxf6 {[%emt 0:00:34]} Qxf6 {[%emt 0:00:37]} 30. Qxc7 {[%emt 0:00:06]} Qxh4 {[%emt 0:00:42]} 31. Rxe6 {[%emt 0:00:49]} R5d7 $2 {[%emt 0:03:16]} (31... h6 $16) 32. Re8+ {[%emt 0:00:26]} Kf7 {[%emt 0:00:11]} 33. Qc6 {[%emt 0:01:16]} Rxe8 {[%emt 0:00:36]} 34. Qxd7+ {[%emt 0:00:06]} Re7 {[%emt 0:00:17]} 35. Rxe7+ {[%emt 0:02:11]} Qxe7 {[%emt 0:00:02]} 36. Qxe7+ {[%emt 0:00:11]} Kxe7 {[%emt 0:00:05]} 37. f4 {[%emt 0:01:43]} Ke6 {[%emt 0:00:17]} 38. Kf2 {[%emt 0:00:09]} Kd5 {[%emt 0:00:20]} 39. Ke3 {[%emt 0:00:30]} Kc4 {[%emt 0:00:39]} 40. Ke4 {[%emt 0:00:34]} a5 {[%emt 0:01:36]} 41. g4 {[%emt 0:31:19]} h6 {[%emt 0:31:10]} 42. Kf5 {[%emt 0:01:14]} 1-0

[Event "Int SVK-ch Open 2020"]
[Site "Drienica"]
[Date "2020.08.15"]
[Round "9.14"]
[White "Panko, Radoslav"]
[Black "Panko Eduard st."]
[Result "1-0"]
[ECO "C36"]
[WhiteElo "2025"]
[BlackElo "1958"]
[Annotator "ChessBase"]
[PlyCount "65"]
[EventDate "2020.08.07"]
[EventType "swiss"]
[EventCountry "SVK"]
[SourceTitle "playchess.com"]
[Source "ChessBase"]
[SourceQuality "1"]
[TimeControl "40/5400+30:1800+30"]

1. e4 {[%emt 0:00:00]} e5 {[%emt 0:00:08]} 2. f4 {[%emt 0:00:00]} d5 {[%emt 0:00:57]} 3. exd5 {[%emt 0:00:03]} Qxd5 {[%emt 0:00:10]} 4. Nc3 {[%emt 0:00:14]} Qe6 {[%emt 0:00:29]} 5. Nf3 {[%emt 0:06:03]} exf4+ {[%emt 0:00:47]} 6. Be2 {[%emt 0:00:07]} Bc5 {[%emt 0:02:39]} 7. d4 {[%emt 0:00:13]} Bd6 {[%emt 0:00:39]} 8. O-O {[%emt 0:00:16]} Ne7 {[%emt 0:00:37]} 9. Ng5 {[%emt 0:01:15]} Qf5 {[%emt 0:00:42]} 10. Nge4 {[%emt 0:00:50]} O-O {[%emt 0:01:06]} 11. Nxd6 {[%emt 0:05:53]} cxd6 {[%emt 0:00:36]} 12. Bxf4 {[%emt 0:00:09]} Qd7 {[%emt 0:00:36]} 13. Nb5 {[%emt 0:04:09]} Nf5 {[%emt 0:04:02]} 14. Bd3 {[%emt 0:02:35]} Nc6 {[%emt 0:04:11]} 15. Bxf5 {[%emt 0:03:40]} Qxf5 {[%emt 0:00:59]} 16. Nxd6 {[%emt 0:00:12]} Qd5 {[%emt 0:00:57]} 17. Nxc8 {[%emt 0:00:28]} Raxc8 {[%emt 0:00:13]} 18. c3 {[%emt 0:00:06]} b5 {[%emt 0:00:27]} 19. Qf3 {[%emt 0:01:10]} Qxf3 {[%emt 0:00:35]} 20. Rxf3 {[%emt 0:00:08]} Rfe8 {[%emt 0:00:05]} 21. Kf1 {[%emt 0:00:53]} f6 {[%emt 0:00:17]} 22. Re1 {[%emt 0:00:12]} Rxe1+ {[%emt 0:00:47]} 23. Kxe1 {[%emt 0:00:02]} Re8+ {[%emt 0:00:15]} 24. Re3 {[%emt 0:00:10]} Rd8 {[%emt 0:01:01]} 25. Re6 {[%emt 0:01:39]} Nxd4 {[%emt 0:00:32]} 26. cxd4 {[%emt 0:00:14]} Rxd4 {[%emt 0:00:18]} 27. Bd2 {[%emt 0:00:30]} Kf7 {[%emt 0:00:27]} 28. Ra6 {[%emt 0:00:06]} Rd7 {[%emt 0:00:06]} 29. Be3 {[%emt 0:00:06]} Kg6 {[%emt 0:01:03]} 30. Rxa7 {[%emt 0:00:08]} Rd5 {[%emt 0:00:31]} 31. Ra5 {[%emt 0:00:32]} Re5 {[%emt 0:00:41]} 32. Kf2 {[%emt 0:00:08]} h5 {[%emt 0:01:10]} 33. a4 {[%emt 0:00:27]} 1-0

[Event "Int SVK-ch Open 2020"]
[Site "Drienica"]
[Date "2020.08.15"]
[Round "9.14"]
[White "Soldan, Jan"]
[Black "Sedlak, Mikulas"]
[Result "1-0"]
[ECO "B01"]
[WhiteElo "1783"]
[BlackElo "1573"]
[Annotator "NA"]
[PlyCount "41"]
[EventDate "2020.08.07"]
[EventType "swiss"]
[EventCountry "SVK"]
[SourceTitle "playchess.com"]
[Source "ChessBase"]
[SourceQuality "1"]
[TimeControl "40/5400+30:1800+30"]

1. e4 {[%emt 0:00:00]} d5 {[%emt 0:00:00]} 2. exd5 {[%emt 0:00:00]} Nf6 {[%emt 0:00:00]} 3. d4 {[%emt 0:00:00]} Nxd5 {[%emt 0:00:00]} 4. c4 {[%emt 0:00:25]} Nb6 {[%emt 0:00:13]} 5. Nc3 {[%emt 0:00:36]} Bf5 {[%emt 0:01:44]} 6. Be3 {[%emt 0:04:14]} c6 {[%emt 0:00:45]} 7. Nf3 {[%emt 0:00:33]} N8d7 {[%emt 0:01:51]} 8. Bd3 {[%emt 0:03:19]} Bg4 {[%emt 0:03:11]} 9. h3 {[%emt 0:00:10]} Bh5 {[%emt 0:00:15]} 10. g4 {[%emt 0:04:58]} Bg6 {[%emt 0:00:10]} 11. h4 {[%emt 0:00:12]} f6 {[%emt 0:02:51]} 12. Bxg6+ {[%emt 0:01:32]} hxg6 {[%emt 0:00:03]} 13. Qd3 {[%emt 0:00:33]} Kf7 {[%emt 0:01:18]} 14. O-O-O {[%emt 0:01:55]} Qc7 {[%emt 0:04:26]} 15. h5 {[%emt 0:00:14]} g5 {[%emt 0:01:20]} 16. Qg6+ {[%emt 0:01:03]} Kg8 {[%emt 0:00:37]} 17. h6 {[%emt 0:00:07]} Rh7 {[%emt 0:02:28]} 18. Nxg5 {[%emt 0:03:34]} fxg5 {[%emt 0:00:53]} 19. Qe6+ {[%emt 0:00:08]} Kh8 {[%emt 0:00:37]} 20. hxg7+ {[%emt 0:00:06]} Bxg7 {[%emt 0:01:11]} 21. Rxh7+ {[%emt 0:00:05]} 1-0

[Event "Int SVK-ch Open 2020"]
[Site "Drienica"]
[Date "2020.08.15"]
[Round "9.15"]
[White "Stevik, Patrik"]
[Black "Sankova, Stella"]
[Result "1/2-1/2"]
[ECO "A01"]
[WhiteElo "2047"]
[BlackElo "1990"]
[Annotator "ChessBase"]
[PlyCount "60"]
[EventDate "2020.08.07"]
[EventType "swiss"]
[EventCountry "SVK"]
[SourceTitle "playchess.com"]
[Source "ChessBase"]
[SourceQuality "1"]
[TimeControl "40/5400+30:1800+30"]

1. b3 {[%emt 0:00:00]} e5 {[%emt 0:00:00]} 2. Bb2 {[%emt 0:00:00]} Nc6 {[%emt 0:00:03]} 3. e3 {[%emt 0:00:00]} Nf6 {[%emt 0:00:43]} 4. Bb5 {[%emt 0:00:10]} Bd6 {[%emt 0:00:14]} 5. Ne2 {[%emt 0:00:15]} O-O {[%emt 0:01:20]} 6. Ng3 {[%emt 0:02:10]} a6 {[%emt 0:01:30]} 7. Be2 {[%emt 0:00:17]} Be7 {[%emt 0:01:21]} 8. c4 {[%emt 0:02:02]} d5 {[%emt 0:01:50]} 9. cxd5 {[%emt 0:01:48]} Nxd5 {[%emt 0:00:31]} 10. Nc3 {[%emt 0:00:56]} Be6 {[%emt 0:03:37]} 11. Nxd5 {[%emt 0:03:53]} Bxd5 {[%emt 0:00:40]} 12. O-O {[%emt 0:00:35]} Qd7 {[%emt 0:05:36]} 13. f4 {[%emt 0:04:39]} exf4 {[%emt 0:04:07]} 14. Rxf4 {[%emt 0:01:30]} Bd6 {[%emt 0:02:40]} 15. Rh4 {[%emt 0:31:39]} Bxg3 {[%emt 0:16:38]} 16. hxg3 {[%emt 0:01:07]} Ne7 {[%emt 0:07:28]} 17. e4 {[%emt 0:09:02]} Bc6 {[%emt 0:05:07]} 18. d4 {[%emt 0:02:24]} Ng6 {[%emt 0:00:22]} 19. d5 {[%emt 0:02:55]} Bb5 {[%emt 0:03:53]} 20. Bg4 {[%emt 0:11:13]} Qe7 {[%emt 0:04:58]} 21. Qd4 {[%emt 0:09:22]} f6 {[%emt 0:05:04]} 22. Be6+ {[%emt 0:01:20]} Kh8 {[%emt 0:00:06]} 23. Rxh7+ {[%emt 0:05:47]} Kxh7 {[%emt 0:00:11]} 24. Kf2 {[%emt 0:05:22]} Ne5 {[%emt 0:05:42]} 25. Rh1+ {[%emt 0:00:23]} Kg6 {[%emt 0:00:08]} 26. Qd1 {[%emt 0:00:39]} Rh8 {[%emt 0:03:01]} 27. Bf5+ {[%emt 0:02:00]} Kf7 {[%emt 0:00:28]} 28. Be6+ {[%emt 0:00:16]} Kg6 {[%emt 0:00:37]} 29. Bf5+ {[%emt 0:01:07]} Kf7 {[%emt 0:00:04]} 30. Be6+ {[%emt 0:00:02]} Kg6 {[%emt 0:00:04]} 1/2-1/2